bitfinex/quotes_BTCUSD_20250618
["timestamp","ask_amount","ask_price","bid_price","bid_amount"]
[1750264042972,0.05012822,104550.0,104530.0,0.44773068]
[1750264043186,0.05012822,104550.0,104530.0,0.45729648]
[1750264043427,0.031,104550.0,104530.0,0.45729648]
[1750264043693,23.32063924,104560.0,104540.0,0.21044547]
[1750264043934,23.32592,104560.0,104550.0,0.032]
[1750264044155,23.32591991,104560.0,104540.0,0.30214142]
[1750264044363,23.31635649,104560.0,104540.0,0.2925758]
[1750264044573,23.32591964,104560.0,104550.0,0.032]
[1750264044790,23.33548288,104560.0,104550.0,0.032]
[1750264045042,23.33548315,104560.0,104540.0,0.26487985]
[1750264045289,23.34504676,104560.0,104540.0,0.28301026]
[1750264045511,23.34504676,104560.0,104540.0,0.28301045]
[1750264045724,23.34504667,104560.0,104540.0,0.29257552]
[1750264045940,23.32660476,104560.0,104540.0,0.3021405]
[1750264046163,23.32660476,104560.0,104540.0,0.29257552]
[1750264046381,23.31704143,104560.0,104540.0,0.29257497]
[1750264046600,23.32660495,104560.0,104540.0,0.27344492]
[1750264046822,23.34504719,104560.0,104540.0,0.27344547]
[1750264047044,23.37754719,104560.0,104540.0,0.283011]
[1750264047264,23.37754719,104560.0,104540.0,0.29257625]
[1750264047524,23.33548349,104560.0,104540.0,0.29257625]
[1750264047747,23.34504719,104560.0,104540.0,0.29257625]
[1750264047963,23.47429641,104560.0,104540.0,0.283011]
[1750264048737,23.36858349,104560.0,104540.0,0.30214141]
[1750264048956,23.39131621,104560.0,104540.0,0.29257625]
[1750264049145,23.39131966,104560.0,104540.0,0.29257625]
[1750264049565,23.40088327,104560.0,104540.0,0.30214141]
[1750264049810,23.40088327,104560.0,104540.0,0.29257625]
[1750264050059,23.40088327,104560.0,104540.0,0.283011]
[1750264050259,23.40088327,104560.0,104540.0,0.29257625]
[1750264050462,23.40088327,104560.0,104540.0,0.283011]
[1750264050463,23.41044706,104560.0,104540.0,0.283011]
[1750264050873,23.40088327,104560.0,104540.0,0.29257625]
[1750264051766,23.41044706,104560.0,104540.0,0.283011]
[1750264051980,23.39200764,104560.0,104540.0,0.29257644]
[1750264052197,23.38176382,104560.0,104540.0,0.30214151]
[1750264052405,23.36779076,104560.0,104540.0,0.30214169]
[1750264052610,23.1730204,104560.0,104540.0,0.30214169]
[1750264052816,23.16345679,104560.0,104540.0,0.30214105]
[1750264053023,23.17302031,104560.0,104540.0,0.28301082]
[1750264053238,23.09694169,104560.0,104550.0,0.28428933]
[1750264053459,23.09694169,104560.0,104550.0,0.44800933]
[1750264053686,23.09694169,104560.0,104550.0,0.28428933]
[1750264053920,23.17279383,104560.0,104540.0,0.35035608]
[1750264054130,0.00956397,104550.0,104540.0,0.36459994]
[1750264054334,23.19721604,104560.0,104540.0,0.37416547]
[1750264054546,23.22663597,104560.0,104540.0,0.37416547]
[1750264054753,0.00956406,104550.0,104540.0,0.00956571]
[1750264054963,0.00956397,104550.0,104540.0,0.01913133]
[1750264055213,0.04942822,104550.0,104530.0,0.28283105]
[1750264055430,0.10175708,104550.0,104530.0,0.41375187]
[1750264055649,0.11132188,104550.0,104530.0,0.03956663]
[1750264055852,0.00956489,104540.0,104530.0,0.20328654]
[1750264056053,0.00956489,104540.0,104530.0,0.20328663]
[1750264056265,0.0635,104550.0,104530.0,0.24046561]
[1750264056473,0.07306416,104550.0,104530.0,0.45361768]
[1750264056640,0.08262859,104550.0,104530.0,0.45361768]
[1750264056844,0.0921932,104550.0,104530.0,0.44405178]
[1750264057054,0.08262859,104550.0,104530.0,0.44405178]
[1750264057227,0.0921932,104550.0,104530.0,0.27076561]
[1750264057429,0.0921932,104550.0,104530.0,0.40418561]
[1750264057635,0.0921932,104550.0,104530.0,0.41375178]
[1750264057830,0.0921932,104550.0,104530.0,0.41375187]
[1750264058033,0.0826285,104550.0,104530.0,0.43288393]
[1750264058235,0.0826285,104550.0,104530.0,0.45361804]
[1750264058474,0.09219311,104550.0,104530.0,0.45661804]
[1750264058675,0.09219302,104550.0,104530.0,0.45661804]
[1750264058896,0.09219302,104550.0,104530.0,0.45361804]
[1750264059091,0.10175773,104550.0,104530.0,0.44405187]
[1750264059290,0.10175773,104550.0,104530.0,0.40518561]
[1750264059560,0.09219302,104550.0,104530.0,0.41475169]
[1750264059781,0.09219302,104550.0,104530.0,0.44595169]
[1750264059996,0.09219302,104550.0,104530.0,0.43638561]
[1750264060212,0.10175773,104550.0,104530.0,0.43638561]
[1750264060463,0.00956489,104540.0,104530.0,0.41475224]
[1750264060686,0.09219302,104550.0,104530.0,0.42431859]
[1750264060899,0.10175773,104550.0,104530.0,0.46388485]
[1750264061110,0.10175782,104550.0,104530.0,0.44475224]
[1750264061330,0.29305395,104550.0,104530.0,0.22472]
[1750264061545,0.00956489,104540.0,104530.0,0.4341858]
[1750264061753,0.00956489,104540.0,104530.0,0.44675224]
[1750264061979,0.08262886,104550.0,104530.0,0.45631859]
[1750264062188,0.08262886,104550.0,104530.0,0.45331822]
[1750264062396,0.09219357,104550.0,104530.0,0.45331822]
[1750264062619,0.08262886,104550.0,104530.0,0.43518543]
[1750264062848,0.09219357,104550.0,104530.0,0.43518543]
[1750264063058,0.09219283,104550.0,104530.0,0.43718543]
[1750264063266,0.10175744,104550.0,104530.0,0.44475178]
[1750264063475,0.29305474,104550.0,104530.0,0.42561917]
[1750264063687,0.00956489,104540.0,104530.0,0.43518561]
[1750264063910,0.00956489,104540.0,104530.0,0.42561917]
[1750264064129,0.09219338,104550.0,104530.0,0.44475178]
[1750264064334,0.08262877,104550.0,104530.0,0.29059795]
[1750264064569,0.08262877,104550.0,104530.0,0.44371178]
[1750264064778,0.09219338,104550.0,104530.0,0.45327795]
[1750264064992,0.0826284,104550.0,104530.0,0.46584394]
[1750264065202,0.0303,104550.0,104530.0,0.4562774]
[1750264065429,0.00956406,104550.0,104530.0,0.45327694]
[1750264065638,0.00956406,104550.0,104540.0,0.00956571]
[1750264066066,0.00956397,104550.0,104540.0,0.20088003]
[1750264066501,0.01912813,104550.0,104540.0,0.20088003]
[1750264066797,0.00956397,104550.0,104540.0,0.21044565]
[1750264067005,0.01912803,104550.0,104540.0,0.20088003]
[1750264067228,23.22046547,104560.0,104540.0,0.21144565]
[1750264067449,23.14910195,104560.0,104540.0,0.35812115]
[1750264067665,23.09694169,104560.0,104550.0,0.44366933]
[1750264067875,23.09694169,104560.0,104550.0,0.53991109]
[1750264068728,23.05731836,104560.0,104550.0,0.53991109]
[1750264070214,23.05731836,104560.0,104550.0,0.54091109]
[1750264070630,23.05731836,104560.0,104550.0,0.53991109]
[1750264071053,23.05731836,104560.0,104550.0,0.54291109]
[1750264071484,23.05731836,104560.0,104550.0,0.54191109]
[1750264071693,23.05731836,104560.0,104550.0,0.53991109]
[1750264071880,23.05731836,104560.0,104550.0,0.54491109]
[1750264072116,23.05731836,104560.0,104550.0,0.55091109]
[1750264077805,23.05731836,104560.0,104550.0,0.57965309]
[1750264079788,23.05731836,104560.0,104550.0,0.41597309]
[1750264080019,23.05731836,104560.0,104550.0,0.62429309]
[1750264080241,23.05731836,104560.0,104550.0,0.41597309]
[1750264080458,23.05731836,104560.0,104550.0,0.62429309]
[1750264080686,23.05731836,104560.0,104550.0,0.43203109]
[1750264081120,23.05731836,104560.0,104550.0,0.59555109]
[1750264083093,23.05731836,104560.0,104550.0,0.59055109]
[1750264083303,23.05731836,104560.0,104550.0,0.59455109]
[1750264083743,23.05731836,104560.0,104550.0,0.58855109]
[1750264084172,23.05731836,104560.0,104550.0,0.59255109]
[1750264085233,23.05731836,104560.0,104550.0,0.59251109]
[1750264085722,23.05731836,104560.0,104550.0,0.58851109]
[1750264085936,23.05731836,104560.0,104550.0,0.59351109]
[1750264086772,23.05731836,104560.0,104550.0,0.58951109]
[1750264086987,23.05731836,104560.0,104550.0,0.59551109]
[1750264088535,23.05731836,104560.0,104550.0,0.38723109]
[1750264088751,23.05731836,104560.0,104550.0,0.59551109]
[1750264089187,23.05731836,104560.0,104550.0,0.38723109]
[1750264089405,23.05731836,104560.0,104550.0,0.59551109]
[1750264090146,23.05731836,104560.0,104550.0,0.38723109]
[1750264090393,23.05731836,104560.0,104550.0,0.35723109]
[1750264090612,23.05731836,104560.0,104550.0,0.52067109]
[1750264091522,23.05731836,104560.0,104550.0,0.55297109]
[1750264092192,23.05731836,104560.0,104550.0,0.38953109]
[1750264092402,23.05731836,104560.0,104550.0,0.55297109]
[1750264093064,23.05731836,104560.0,104550.0,0.52067109]
[1750264093279,22.82315483,104560.0,104550.0,0.52067109]
[1750264093750,22.82315483,104560.0,104550.0,0.35723109]
[1750264093958,22.82315483,104560.0,104550.0,0.55317109]
[1750264094216,22.82315483,104560.0,104550.0,0.52067109]
[1750264094432,22.82315483,104560.0,104550.0,0.32723109]
[1750264094639,22.88675483,104560.0,104550.0,0.49067109]
[1750264094850,22.88675483,104560.0,104550.0,0.32723109]
[1750264095070,22.88675483,104560.0,104550.0,0.49067109]
[1750264095518,22.88675483,104560.0,104550.0,0.48567109]
[1750264095737,22.88675483,104560.0,104550.0,0.48967109]
[1750264095947,22.88675483,104560.0,104550.0,0.39342933]
[1750264096161,22.88675483,104560.0,104550.0,0.38342933]
[1750264096585,22.88675483,104560.0,104550.0,0.38086517]
[1750264096793,22.88675483,104560.0,104550.0,0.39038951]
[1750264096998,22.88675483,104560.0,104550.0,0.39995367]
[1750264097206,22.88675483,104560.0,104550.0,0.39595367]
[1750264097390,22.88675483,104560.0,104550.0,0.38638951]
[1750264097625,22.88675483,104560.0,104550.0,0.39795367]
[1750264099376,22.88675483,104560.0,104550.0,0.23455367]
[1750264099605,22.88675483,104560.0,104550.0,0.39795376]
[1750264099832,22.88675483,104560.0,104550.0,0.36926046]
[1750264100053,22.88675483,104560.0,104550.0,0.38838942]
[1750264100265,22.82315483,104560.0,104550.0,0.39795376]
[1750264100478,22.82315483,104560.0,104550.0,0.40751792]
[1750264101204,22.82315483,104560.0,104550.0,0.50375968]
[1750264101441,22.82315483,104560.0,104550.0,0.56965968]
[1750264104289,22.82315483,104560.0,104550.0,0.56717968]
[1750264106414,22.82315483,104560.0,104550.0,0.61181968]
[1750264109102,22.82315483,104560.0,104550.0,0.40377968]
[1750264109350,22.82315483,104560.0,104550.0,0.61177968]
[1750264110271,22.82315483,104560.0,104550.0,0.44845968]
[1750264110492,22.82315483,104560.0,104550.0,0.40377968]
[1750264110721,22.82315483,104560.0,104550.0,0.56709968]
[1750264111669,22.60759707,104560.0,104550.0,0.56709968]
[1750264112109,22.60759707,104560.0,104550.0,0.50115968]
[1750264113043,22.60759707,104560.0,104550.0,0.56545968]
[1750264118364,22.60759707,104560.0,104550.0,0.56493968]
[1750264118582,22.63809707,104560.0,104550.0,0.09824176]
[1750264118799,22.63809707,104560.0,104550.0,0.003]
[1750264118800,22.68016013,104560.0,104550.0,0.003]
[1750264119012,22.68972337,104560.0,104550.0,0.003]
[1750264119224,22.90012886,104560.0,104550.0,0.003]
[1750264119436,22.90012886,104560.0,104550.0,0.16324]
[1750264119648,22.83712886,104560.0,104550.0,0.004]
[1750264119869,22.83712886,104560.0,104550.0,0.16524]
[1750264120281,22.91754608,104560.0,104550.0,0.002]
[1750264120897,0.00956397,104550.0,104540.0,0.36411808]
[1750264121103,0.07256397,104550.0,104540.0,0.36411817]
[1750264121310,0.063,104550.0,104540.0,0.37368556]
[1750264121724,0.063,104550.0,104540.0,0.383251]
[1750264121954,0.063,104550.0,104540.0,0.37468556]
[1750264122166,0.063,104550.0,104540.0,0.21144556]
[1750264122388,0.063,104550.0,104540.0,0.37468565]
[1750264122561,0.063,104550.0,104540.0,0.38425118]
[1750264122849,0.063,104550.0,104540.0,0.39381662]
[1750264123230,0.063,104550.0,104540.0,0.40338197]
[1750264123435,0.063,104550.0,104540.0,0.39381662]
[1750264123647,0.063,104550.0,104540.0,0.40338187]
[1750264123851,0.063,104550.0,104540.0,0.40338178]
[1750264124061,0.063,104550.0,104540.0,0.40338187]
[1750264124295,0.063,104550.0,104540.0,0.22101118]
[1750264124471,0.063,104550.0,104540.0,0.39381662]
[1750264124668,0.063,104550.0,104540.0,0.38425118]
[1750264124867,0.063,104550.0,104540.0,0.39381662]
[1750264125274,0.07256406,104550.0,104540.0,0.001]
[1750264125474,0.09169274,104550.0,104540.0,0.001]
[1750264125654,0.09169274,104550.0,104540.0,0.1642]
[1750264126484,0.39826731,104550.0,104540.0,0.001]
[1750264126692,0.20697128,104550.0,104540.0,0.1642]
[1750264126911,0.10125726,104550.0,104540.0,0.1642]
[1750264127115,0.08212831,104550.0,104540.0,0.1642]
[1750264127321,0.0312,104550.0,104540.0,0.38421082]
[1750264127731,22.70028716,104560.0,104540.0,0.39377607]
[1750264127960,22.70985086,104560.0,104540.0,0.39377607]
[1750264128372,22.79643638,104560.0,104540.0,0.39377607]
[1750264128654,22.79643638,104560.0,104540.0,0.39277607]
[1750264129059,22.80700008,104560.0,104540.0,0.39277607]
[1750264129208,22.80700008,104560.0,104540.0,0.37364547]
[1750264129410,22.81656396,104560.0,104540.0,0.37364547]
[1750264129611,0.03986406,104550.0,104540.0,0.36408003]
[1750264129809,0.0820284,104550.0,104540.0,0.1632]
[1750264130184,0.07246406,104550.0,104540.0,0.17276571]
[1750264130370,0.08202822,104550.0,104540.0,0.1632]
[1750264130799,0.08202822,104550.0,104540.0,0.1642]
[1750264131042,0.09159265,104550.0,104540.0,0.1642]
[1750264131465,0.09159256,104550.0,104540.0,0.1642]
[1750264131723,0.17235767,104550.0,104540.0,0.1642]
[1750264131937,0.0629,104550.0,104540.0,0.37464565]
[1750264132185,0.0303,104550.0,104540.0,0.39377634]
[1750264132399,22.69142355,104560.0,104540.0,0.40334068]
[1750264132618,22.68186031,104560.0,104540.0,0.40333995]
[1750264133048,22.69142364,104560.0,104540.0,0.39377506]
[1750264133271,22.96587825,104560.0,104540.0,0.1632]
[1750264133484,0.03976397,104550.0,104540.0,0.37364526]
[1750264133698,0.0302,104550.0,104540.0,0.36407973]
[1750264133910,0.0302,104550.0,104540.0,0.37364517]
[1750264134337,0.0302,104550.0,104540.0,0.38321052]
[1750264134764,22.71135095,104560.0,104540.0,0.39377568]
[1750264134971,22.71135095,104560.0,104540.0,0.38421052]
[1750264135176,22.71135095,104560.0,104540.0,0.39373568]
[1750264135177,22.70178734,104560.0,104540.0,0.39373568]
[1750264135386,22.71135113,104560.0,104540.0,0.38417052]
[1750264135571,22.71135113,104560.0,104540.0,0.37460517]
[1750264135828,0.0329,104550.0,104540.0,0.37460526]
[1750264136512,0.05202813,104550.0,104540.0,0.16416]
[1750264136771,0.09189247,104550.0,104540.0,0.16316]
[1750264136996,0.10145699,104550.0,104540.0,0.16316]
[1750264137211,0.09189247,104550.0,104540.0,0.16316]
[1750264137679,0.08232813,104550.0,104540.0,0.16316]
[1750264137901,0.09189247,104550.0,104540.0,0.16416]
[1750264138349,0.08232813,104550.0,104540.0,0.16416]
[1750264138804,0.08232813,104550.0,104540.0,0.17372571]
[1750264139283,0.08232813,104550.0,104540.0,0.20188003]
[1750264139284,0.0632,104550.0,104540.0,0.20188003]
[1750264139501,0.0329,104550.0,104540.0,0.37460565]
[1750264139716,0.04246397,104550.0,104540.0,0.37460565]
[1750264139931,0.0329,104550.0,104540.0,0.37460556]
[1750264140149,0.0329,104550.0,104540.0,0.384171]
[1750264140370,0.0329,104550.0,104540.0,0.37460556]
[1750264140565,0.04246416,104550.0,104540.0,0.16416]
[1750264140827,0.38950289,104550.0,104540.0,0.001]
[1750264141045,0.17907799,104550.0,104540.0,0.001]
[1750264141257,22.96199577,104560.0,104540.0,0.19231371]
[1750264141258,22.65750251,104560.0,104540.0,0.19231371]
[1750264141496,0.00956406,104550.0,104540.0,0.01056571]
[1750264141710,22.75970201,104560.0,104540.0,0.21144449]
[1750264141943,22.75970201,104560.0,104540.0,0.2114444]
[1750264141944,22.47149393,104560.0,104540.0,0.2114444]
[1750264142153,22.48105754,104560.0,104540.0,0.291975]
[1750264142365,22.45236736,104560.0,104540.0,0.29197436]
[1750264142586,22.44348716,104560.0,104550.0,0.20086074]
[1750264142819,22.44348716,104560.0,104550.0,0.28138933]
[1750264143037,22.44348716,104560.0,104550.0,0.44450933]
[1750264143325,22.44448716,104560.0,104550.0,0.45407358]
[1750264143541,22.44448716,104560.0,104550.0,0.44450942]
[1750264143775,22.44348716,104560.0,104550.0,0.44450942]
[1750264143984,22.44448716,104560.0,104550.0,0.44450951]
[1750264144194,22.44448716,104560.0,104550.0,0.45407376]
[1750264144409,22.44348716,104560.0,104550.0,0.45407376]
[1750264144619,22.44348716,104560.0,104550.0,0.44450951]
[1750264144834,22.44348716,104560.0,104550.0,0.43594517]
[1750264145049,22.44348716,104560.0,104550.0,0.41550978]
[1750264145262,22.44348716,104560.0,104550.0,0.44660978]
[1750264145472,22.44348716,104560.0,104550.0,0.45617394]
[1750264145661,22.44348716,104560.0,104550.0,0.45617412]
[1750264145856,22.44348716,104560.0,104550.0,0.44660978]
[1750264146074,22.44348716,104560.0,104550.0,0.46573837]
[1750264146289,22.44348716,104560.0,104550.0,0.41791603]
[1750264146507,22.45305031,104560.0,104550.0,0.42748083]
[1750264146723,22.45305031,104560.0,104550.0,0.43704554]
[1750264146935,22.45305022,104560.0,104550.0,0.43704554]
[1750264147086,22.45305022,104560.0,104550.0,0.40594554]
[1750264147294,22.45305022,104560.0,104550.0,0.39638083]
[1750264147500,22.45305022,104560.0,104550.0,0.40594544]
[1750264147899,22.44348716,104560.0,104550.0,0.45597394]
[1750264148319,22.44348716,104560.0,104550.0,0.44640978]
[1750264148494,22.44348716,104560.0,104550.0,0.44640996]
[1750264148695,22.45305022,104560.0,104550.0,0.43684544]
[1750264149058,22.44348716,104560.0,104550.0,0.45597439]
[1750264149283,22.44348716,104560.0,104550.0,0.43684544]
[1750264149700,22.44348716,104560.0,104550.0,0.44641015]
[1750264149829,22.44348716,104560.0,104550.0,0.45597467]
[1750264150034,22.44348716,104560.0,104550.0,0.4655391]
[1750264150245,22.44348716,104560.0,104550.0,0.46553855]
[1750264150441,22.44348716,104560.0,104550.0,0.44640987]
[1750264151260,22.44348716,104560.0,104550.0,0.4559743]
[1750264151680,22.44348716,104560.0,104550.0,0.43684535]
[1750264151885,22.45305022,104560.0,104550.0,0.42728074]
[1750264152107,22.45305022,104560.0,104550.0,0.42728083]
[1750264152516,22.45305022,104560.0,104550.0,0.43684554]
[1750264152952,22.44348716,104560.0,104550.0,0.28329006]
[1750264153147,22.44348716,104560.0,104550.0,0.45593449]
[1750264153387,22.44348716,104560.0,104550.0,0.44637006]
[1750264153827,22.44348716,104560.0,104550.0,0.4559344]
[1750264153986,22.44348716,104560.0,104550.0,0.45593449]
[1750264154195,22.45305022,104560.0,104550.0,0.44637015]
[1750264154600,22.44348716,104560.0,104550.0,0.45593467]
[1750264155051,22.44348716,104560.0,104550.0,0.44637015]
[1750264155204,22.44348716,104560.0,104550.0,0.45593467]
[1750264155404,22.44348716,104560.0,104550.0,0.44637015]
[1750264155576,22.44348716,104560.0,104550.0,0.42724083]
[1750264155781,22.44348716,104560.0,104550.0,0.44637015]
[1750264156218,22.44348716,104560.0,104550.0,0.41763603]
[1750264156433,22.44348716,104560.0,104550.0,0.43676535]
[1750264156860,22.44348716,104560.0,104550.0,0.44632978]
[1750264157079,22.44348716,104560.0,104550.0,0.46545828]
[1750264157305,22.44348716,104560.0,104550.0,0.45589412]
[1750264157958,22.44348716,104560.0,104550.0,0.46545773]
[1750264160694,22.44348716,104560.0,104550.0,0.56169949]
[1750264161755,22.49348716,104560.0,104550.0,0.56169949]
[1750264169768,22.49348716,104560.0,104550.0,0.39865949]
[1750264169978,22.49348716,104560.0,104550.0,0.56161949]
[1750264171458,22.49348716,104560.0,104550.0,0.56041949]
[1750264171670,22.49348716,104560.0,104550.0,0.56037949]
[1750264182046,22.49348716,104560.0,104550.0,0.15834176]
[1750264182263,22.63029953,104560.0,104550.0,0.001]
[1750264182469,22.66169953,104560.0,104550.0,0.16384]
[1750264182688,22.53415022,104560.0,104550.0,0.16384]
[1750264182898,22.50305022,104560.0,104550.0,0.35513603]
[1750264183339,22.50305022,104560.0,104550.0,0.36470074]
[1750264183545,22.51261337,104560.0,104550.0,0.36470083]
[1750264183935,22.5221767,104560.0,104550.0,0.16384]
[1750264184346,22.51261337,104560.0,104550.0,0.37426554]
[1750264184562,22.51261337,104560.0,104550.0,0.36470083]
[1750264184771,22.51261337,104560.0,104550.0,0.1734048]
[1750264184917,22.51261337,104560.0,104550.0,0.16384]
[1750264185125,22.51261337,104560.0,104550.0,0.37426554]
[1750264185959,22.5221767,104560.0,104550.0,0.16384]
[1750264186205,22.30793386,104560.0,104550.0,0.16384]
[1750264186532,22.34073386,104560.0,104550.0,0.16384]
[1750264186899,22.29837053,104560.0,104550.0,0.1734048]
[1750264187114,22.30793386,104560.0,104550.0,0.001]
[1750264187720,22.30793386,104560.0,104550.0,0.1638]
[1750264187983,22.28880738,104560.0,104550.0,0.36466074]
[1750264188163,22.28880738,104560.0,104550.0,0.20186074]
[1750264188335,22.46803088,104560.0,104550.0,0.19229603]
[1750264188681,22.46803088,104560.0,104550.0,0.20186074]
[1750264189143,22.46803088,104560.0,104550.0,0.21142535]
[1750264189348,22.45846782,104560.0,104550.0,0.21142535]
[1750264189554,22.47759412,104560.0,104550.0,0.001]
[1750264189959,22.57374334,104560.0,104550.0,0.001]
[1750264190372,22.39451984,104560.0,104550.0,0.001]
[1750264190576,22.28880738,104560.0,104550.0,0.20186083]
[1750264190780,22.28880738,104560.0,104550.0,0.21142554]
[1750264190985,22.27924432,104560.0,104550.0,0.22099006]
[1750264191192,22.27924432,104560.0,104550.0,0.28329006]
[1750264191402,22.27924432,104560.0,104550.0,0.2928544]
[1750264191603,22.27924432,104560.0,104550.0,0.29285449]
[1750264191937,22.27924432,104560.0,104550.0,0.30241874]
[1750264192142,22.27924432,104560.0,104550.0,0.3024181]
[1750264193894,22.10823702,104560.0,104550.0,0.3024181]
[1750264196355,22.10823702,104560.0,104550.0,0.28328969]
[1750264196559,22.10823702,104560.0,104550.0,0.30241828]
[1750264197205,22.10823702,104560.0,104550.0,0.16372]
[1750264197206,22.26880891,104560.0,104550.0,0.16372]
[1750264197364,22.24232564,104560.0,104550.0,0.16372]
[1750264197568,22.24232555,104560.0,104550.0,0.16372]
[1750264198075,22.24232555,104560.0,104550.0,0.36458083]
[1750264198275,22.14617633,104560.0,104550.0,0.37414554]
[1750264198493,22.10823702,104560.0,104550.0,0.38371015]
[1750264198935,22.10823702,104560.0,104550.0,0.37414554]
[1750264199453,22.13692665,104560.0,104550.0,0.001]
[1750264199662,22.16782665,104560.0,104550.0,0.16372]
[1750264200012,22.26397587,104560.0,104550.0,0.001]
[1750264200218,22.31370309,104560.0,104550.0,0.001]
[1750264200458,22.67845399,104560.0,104550.0,0.001]
[1750264200650,27.50969929,104560.0,104550.0,0.001]
[1750264200855,27.36271021,104560.0,104550.0,0.001]
[1750264201026,0.00956599,104530.0,104520.0,0.0002418]
[1750264201619,0.04943207,104530.0,104520.0,0.0002418]
[1750264201838,0.03986599,104530.0,104520.0,0.0002418]
[1750264202062,0.04943216,104530.0,104520.0,0.0002418]
[1750264202306,0.04943207,104530.0,104520.0,0.0002418]
[1750264202538,0.43412928,104540.0,104520.0,0.00980934]
[1750264202761,0.2,104540.0,104520.0,0.29046133]
[1750264202987,0.00956489,104540.0,104520.0,0.28089452]
[1750264203179,0.02869494,104540.0,104520.0,0.30002814]
[1750264203558,0.02869494,104540.0,104530.0,0.16268]
[1750264203559,0.0382601,104540.0,104530.0,0.16268]
[1750264203759,0.0382601,104540.0,104520.0,0.46270814]
[1750264203965,0.04782545,104540.0,104520.0,0.42444017]
[1750264204163,0.0095658,104530.0,104520.0,0.27132753]
[1750264204409,0.31040695,104540.0,104520.0,0.43400753]
[1750264204574,0.37000395,104540.0,104520.0,0.43400753]
[1750264204778,0.36043824,104540.0,104520.0,0.43400753]
[1750264204978,0.37000377,104540.0,104520.0,0.43400753]
[1750264205202,0.15927049,104530.0,104520.0,0.4435748]
[1750264205452,0.15927049,104530.0,104520.0,0.45314198]
[1750264205650,0.30902751,104540.0,104520.0,0.46270897]
[1750264205833,0.35906,104540.0,104520.0,0.46270897]
[1750264206050,0.29845936,104540.0,104530.0,0.00956663]
[1750264206281,0.29845936,104540.0,104530.0,0.1383003]
[1750264206282,0.230297,104540.0,104530.0,0.1383003]
[1750264206486,0.24942714,104540.0,104520.0,0.38297388]
[1750264206702,0.33085811,104540.0,104520.0,0.24751661]
[1750264206909,0.0095658,104530.0,104520.0,0.0002418]
[1750264207123,0.01913169,104530.0,104520.0,0.0002418]
[1750264207274,0.0095658,104530.0,104520.0,0.00980934]
[1750264207497,0.01913179,104530.0,104520.0,0.00980934]
[1750264208115,0.0095658,104530.0,104520.0,0.21072772]
[1750264208545,0.22959722,104530.0,104520.0,0.0002418]
[1750264208725,0.12623274,104530.0,104520.0,0.0002418]
[1750264209082,0.42637534,104530.0,104520.0,0.0002418]
[1750264209290,0.4547515,104530.0,104520.0,0.0002418]
[1750264209499,0.2254759,104530.0,104520.0,0.0002418]
[1750264209711,0.36910612,104540.0,104520.0,0.0002418]
[1750264209938,0.22003206,104530.0,104520.0,0.0002418]
[1750264210149,0.2750658,104530.0,104520.0,0.0002418]
[1750264210761,0.2770658,104530.0,104520.0,0.0002418]
[1750264211150,0.2750658,104530.0,104520.0,0.0002418]
[1750264211478,0.33713405,104530.0,104520.0,0.0002418]
[1750264211683,0.33813405,104530.0,104520.0,0.0002418]
[1750264213187,5.13804381,104530.0,104520.0,0.0002418]
[1750264213619,5.16641997,104530.0,104520.0,0.0002418]
[1750264214022,5.13804381,104530.0,104520.0,0.0002418]
[1750264214314,5.18236381,104530.0,104520.0,0.0002418]
[1750264215275,5.01972381,104530.0,104520.0,0.0002418]
[1750264220610,5.18232381,104530.0,104520.0,0.0002418]
[1750264221289,5.01133556,104530.0,104520.0,0.0002418]
[1750264221500,4.84873556,104530.0,104520.0,0.0002418]
[1750264221708,5.01133556,104530.0,104520.0,0.0002418]
[1750264221923,0.02969823,104530.0,104520.0,0.0655418]
[1750264222165,0.22969796,104530.0,104520.0,0.0655418]
[1750264222454,0.22013179,104530.0,104520.0,0.08467679]
[1750264222659,0.2105658,104530.0,104520.0,0.27602763]
[1750264222866,0.201,104530.0,104520.0,0.28559472]
[1750264223073,0.201,104530.0,104520.0,0.27602754]
[1750264223688,0.201,104530.0,104520.0,0.26646027]
[1750264223838,0.21056589,104530.0,104520.0,0.26646027]
[1750264224266,0.25968872,104530.0,104520.0,0.0655418]
[1750264224432,0.27882115,104530.0,104520.0,0.0655418]
[1750264224632,0.2692548,104530.0,104520.0,0.0655418]
[1750264225818,0.25968863,104530.0,104520.0,0.27602754]
[1750264226017,0.25012283,104530.0,104520.0,0.27602754]
[1750264226223,0.25012283,104530.0,104520.0,0.28559472]
[1750264226429,0.001,104530.0,104520.0,0.31305054]
[1750264226618,0.001,104530.0,104520.0,0.30348346]
[1750264226825,0.001,104530.0,104520.0,0.31305054]
[1750264227270,0.0105658,104530.0,104520.0,0.09299808]
[1750264227482,0.0105658,104530.0,104520.0,0.29391646]
[1750264227679,0.04611915,104530.0,104520.0,0.29391646]
[1750264227883,0.02698736,104530.0,104520.0,0.30348373]
[1750264228091,0.001,104530.0,104520.0,0.28559508]
[1750264228301,0.001,104530.0,104520.0,0.3034854]
[1750264228506,0.001,104530.0,104520.0,0.31305267]
[1750264228707,0.001,104530.0,104520.0,0.3034854]
[1750264228930,0.001,104530.0,104520.0,0.31305267]
[1750264229266,0.001,104530.0,104520.0,0.32261948]
[1750264229473,0.001,104530.0,104520.0,0.58142124]
[1750264232516,22.10823702,104560.0,104550.0,0.2813896]
[1750264232752,22.10823702,104560.0,104550.0,0.29927992]
[1750264233204,22.10823702,104560.0,104550.0,0.30884408]
[1750264233428,22.11780017,104560.0,104550.0,0.28971586]
[1750264233643,22.23307615,104560.0,104550.0,0.04870572]
[1750264233859,22.23307615,104560.0,104550.0,0.07930572]
[1750264234283,22.22351263,104560.0,104550.0,0.07930572]
[1750264234505,22.18307605,104560.0,104550.0,0.07930572]
[1750264235187,22.17351263,104560.0,104550.0,0.07930572]
[1750264235604,22.18307615,104560.0,104550.0,0.07930572]
[1750264235813,22.18407615,104560.0,104550.0,0.07930572]
[1750264236473,22.18407615,104560.0,104550.0,0.0614]
[1750264236689,22.19363985,104560.0,104550.0,0.0614]
[1750264236899,0.00956397,104550.0,104540.0,0.42449568]
[1750264237107,22.39448146,104560.0,104540.0,0.45193382]
[1750264237325,0.01912822,104550.0,104540.0,0.0789727]
[1750264237537,0.11527744,104550.0,104540.0,0.0789727]
[1750264237768,0.00956397,104550.0,104540.0,0.27028702]
[1750264237988,0.01912813,104550.0,104540.0,0.26198003]
[1750264238206,0.01912813,104550.0,104540.0,0.0611]
[1750264238424,0.01912813,104550.0,104540.0,0.07066562]
[1750264238425,0.00956397,104550.0,104540.0,0.07066562]
[1750264238698,0.01912803,104550.0,104540.0,0.07066562]
[1750264238911,0.01912803,104550.0,104540.0,0.0621]
[1750264239538,22.14622811,104560.0,104540.0,0.06026]
[1750264239758,0.01912803,104550.0,104540.0,0.06026]
[1750264239959,0.0382568,104550.0,104540.0,0.06026]
[1750264240426,0.02869228,104550.0,104540.0,0.05926]
[1750264240858,0.01912803,104550.0,104540.0,0.05926]